Cogmind - Beta 12 @@@ ROGUE MODE // 2023.09.20 @ 12:54:54 Player: Rohain Result: Self-destructed Performance ------------- Evolutions (8) 4000 Regions Visited (13) 2600 Robots Destroyed (22) 110 Value Destroyed (739) 739 Prototype IDs (14) 280 Alien Tech Used (0) 0 Bonus (1000) 1000 TOTAL SCORE: 8729 Bonus ------- Entered DSFs 500 Scanned by Researcher 500 Cogmind --------- Core Integrity 338/1450 Matter 295/300 Energy 45/100 System Corruption 44% Temperature Cool (9) Movement Core (100) Ox1 Location -2/Testing Parts ------- > --- POWER (1) -------- (None) > --- PROPULSION (4) --- (None) > --- UTILITY (16) ----- Improved Terrain Scan Processor Experimental Terrain Scan Processor Advanced Target Analyzer > --- WEAPON (2) ------- Phase Gun > --- INVENTORY (5) ---- Large Storage Unit Remote Datajack Peak State ------------ > --- POWER ------------ Quantum Reactor > --- PROPULSION ------- Nuclear Pulse Array Impulse Thruster Array > --- UTILITY ---------- Medium Storage Unit Advanced Energy Well Gravity Neutralizer Machine Analyzer Improved Terrain Scan Processor Experimental Terrain Scan Processor Advanced ECM Suite Improved Hacking Suite Improved System Restoration Module > --- WEAPON ----------- (None) > --- INVENTORY -------- Q-thruster Large Storage Unit Remote Datajack [Rating: 81] Favorites ----------- Power Ion Engine Engine Ion Engine Reactor Antimatter Reactor Propulsion Improved VTOL Module Treads Advanced Medium Treads Leg Aluminum Leg Flight Unit Improved VTOL Module Utility Hacking Suite Device ECM Suite Storage Advanced Energy Well Processor Advanced Visual Processing Unit Hackware Hacking Suite Protection Improved Propulsion Shielding Weapon Medium Laser Energy Gun Medium Laser Ballistic Gun Helical Railgun Launcher Grenade Launcher Special Weapon Remote Datajack Build | -11 -10 -10 -10 -9 -8 -7 -6 -5 -4 -4 -3 -2 -2 ------- Run | Jun Mat Min Exi Min Mat Fac Fac Fac Fac DSF Res Res Tes Slots Evolved 16 | . . . . . 4 2 2 2 2 . 2 2 . Power . | . . . . . . . . . . . . . . Propulsion 2 | . . . . . 2 . . . . . . . . Utility 14 | . . . . . 2 2 2 2 2 . 2 2 . Weapon . | . . . . . . . . . . . . . . Parts Attached 67 | 5 4 1 . 3 11 4 6 1 . 1 6 8 17 Power 12 | 1 . . . . 2 . . . . . 1 3 5 Engine 3 | 1 . . . . 2 . . . . . . . . Core . | . . . . . . . . . . . . . . Reactor 9 | . . . . . . . . . . . 1 3 5 Propulsion 17 | 2 1 . . 2 4 1 . 1 . . 1 1 4 Treads 3 | . . . . . . . . . . . . . 3 Leg 5 | 2 1 . . . 1 . . . . . . . 1 Wheel . | . . . . . . . . . . . . . . Hover . | . . . . . . . . . . . . . . Flight 9 | . . . . 2 3 1 . 1 . . 1 1 . Utility 25 | 1 2 1 . . 4 2 5 . . 1 4 4 1 Device 9 | . 1 1 . . 1 . 2 . . 1 . 3 . Storage 4 | 1 1 . . . . . . . . . 2 . . Processor 6 | . . . . . 2 . 1 . . . 1 1 1 Hackware 4 | . . . . . 1 2 . . . . 1 . . Protection 2 | . . . . . . . 2 . . . . . . Artifact . | . . . . . . . . . . . . . . Weapon 13 | 1 1 . . 1 1 1 1 . . . . . 7 Energy Gun 8 | 1 1 . . . 1 . . . . . . . 5 Energy Cannon . | . . . . . . . . . . . . . . Ballistic Gun 2 | . . . . . . . . . . . . . 2 Ballistic Cannon . | . . . . . . . . . . . . . . Launcher 1 | . . . . 1 . . . . . . . . . Special Weapon 2 | . . . . . . 1 1 . . . . . . Impact Weapon . | . . . . . . . . . . . . . . Slashing Weapon . | . . . . . . . . . . . . . . Piercing Weapon . | . . . . . . . . . . . . . . Special Melee Weapon . | . . . . . . . . . . . . . . Unidentified Prototypes 13 | . . 1 . . 2 . 1 . . . 2 1 6 Corrupted Parts 3 | . . . . . . . . . . . . . 3 System Corruption 27 | . . . . . . . . . . . . . 27 Parts Lost 33 | . . 4 . 2 6 . . . . 3 4 5 9 Power 6 | . . 1 . . 2 . . . . . 1 . 2 Propulsion 13 | . . 2 . 1 4 . . . . . . 3 3 Utility 10 | . . . . . . . . . . 3 3 2 2 Weapon 4 | . . 1 . 1 . . . . . . . . 2 Highest Loss Streak 5 | . . 4 . 2 4 . . . . 3 4 5 4 To Critical Strikes . | . . . . . . . . . . . . . . Average Slot Usage (%) 48 | . 88 88 . 5 61 52 59 56 52 48 43 38 28 Engine 2 | . 14 12 . . 6 . . . . . . . . Leg 4 | . 28 25 . . 4 . . . . . . . . Flight 6 | . . . . 5 20 6 6 9 10 10 9 6 . Device 5 | . 3 10 . . 6 7 8 5 5 5 4 9 5 Storage 3 | . 16 12 . . . . . . . . 4 5 . Processor 10 | . . . . . 14 15 18 17 15 14 13 9 8 Hackware 7 | . . . . . 7 17 20 17 15 13 4 4 2 Protection 1 | . . . . . . . 4 5 5 5 3 . . Energy Gun 3 | . 25 24 . . . . . . . . . . 1 Naked Turns 221 | . . 14 100 107 . . . . . . . . . Heaviest Build 38 | 12 23 22 . 3 10 5 4 4 4 5 26 38 26 Greatest Support 80 | 20 20 20 3 4 15 5 5 18 18 18 29 41 80 Greatest Overweight (x) 7 | . 1 1 . . . . . . . . . 2 7 Average Overweight (x) . | . . . . . . . . . . . . . . Largest Inventory Capacity 10 | 8 10 10 5 5 5 5 5 5 5 5 10 10 5 Average Capacity 5 | 6 8 9 5 5 5 5 5 5 5 5 5 8 5 Most Carried 7 | 4 5 7 5 5 5 5 5 5 5 5 5 5 5 Average Carried 4 | 1 3 5 5 4 4 4 4 5 5 5 5 3 3 Final Capacity 10 | 8 10 5 5 5 5 5 5 5 5 5 10 5 5 Final Carried 5 | 3 5 5 5 4 4 5 5 5 5 5 5 3 2 Class Distribution -------------------- 64% | Mutant 32% | Hacker-Mutant Dominant Class ---------------- Mutant | -10/Materials Mutant | -10/Mines Mutant | -10/Exiles Mutant | -9/Mines Mutant | -8/Materials Hacker-Mutant | -7/Factory Hacker-Mutant | -6/Factory Hacker-Mutant | -5/Factory Hacker-Mutant | -4/Factory Hacker-Mutant | -4/DSF Mutant | -3/Research Mutant | -2/Research Mutant | -2/Testing Resources | -11 -10 -10 -10 -9 -8 -7 -6 -5 -4 -4 -3 -2 -2 ----------- Run | Jun Mat Min Exi Min Mat Fac Fac Fac Fac DSF Res Res Tes Matter Collected 837 | 164 126 . . 38 90 . . . . . . . 419 Remotely . | . . . . . . . . . . . . . . Salvage Created 906 | . 213 . . 4 202 . . . . . . . 487 Parts 49 | . 13 . . 2 8 . . . . . . . 26 Haulers Intercepted 1 | . 1 . . . . . . . . . . . . Recyclers Shooed . | . . . . . . . . . . . . . . Parts Field Recycled . | . . . . . . . . . . . . . . Retrieved Matter . | . . . . . . . . . . . . . . Parts Self-Destructed . | . . . . . . . . . . . . . . Prevented . | . . . . . . . . . . . . . . Kills | -11 -10 -10 -10 -9 -8 -7 -6 -5 -4 -4 -3 -2 -2 ------- Run | Jun Mat Min Exi Min Mat Fac Fac Fac Fac DSF Res Res Tes Combat Hostiles Destroyed 13 | . 5 . . 1 2 . . . . . . . 5 Guns 11 | . 5 . . . 1 . . . . . . . 5 AOE 2 | . . . . 1 1 . . . . . . . . Classes Destroyed 10 | . 5 . . . 2 . . . . . . . 3 Worker 4 | . 1 . . . . . . . . . . . 3 Builder 1 | . . . . . . . . . . . . . 1 Hauler 1 | . 1 . . . . . . . . . . . . Recycler 1 | . . . . . 1 . . . . . . . . Operator 1 | . 1 . . . . . . . . . . . . Swarmer 4 | . 3 . . 1 . . . . . . . . . Grunt 3 | . 2 . . . . . . . . . . . 1 Researcher 1 | . . . . . . . . . . . . . 1 Hunter 2 | . . . . . 2 . . . . . . . . Programmer 4 | . . . . . . . . . . . . . 4 Best Kill Streak 7 | . 3 . . 1 3 . . . . . . . 7 Combat Bots Only 4 | . 3 . . 1 1 . . . . . . . 4 Max Kills in Single Turn 2 | . 2 . . 1 1 . . . . . . . 1 Gunslinging . | . . . . . . . . . . . . . . Exploded 1 | . . . . 1 1 . . . . . . . . Melee . | . . . . . . . . . . . . . . Uniques/NPCs Destroyed . | . . . . . . . . . . . . . . Combat | -11 -10 -10 -10 -9 -8 -7 -6 -5 -4 -4 -3 -2 -2 -------- Run | Jun Mat Min Exi Min Mat Fac Fac Fac Fac DSF Res Res Tes Damage Taken 5806 | . 141 379 . 135 538 85 96 . . 247 753 557 2875 Core 2220 | . 32 97 . 88 286 65 81 . . 117 342 267 845 Absorbed by Shields . | . . . . . . . . . . . . . . Redirected to Shielding 104 | . . . . . . . 6 . . 56 42 . . Regen/Repaired (Parts) 38 | . . . . . . 38 . . . . . . . Core Remaining (%) 75 | 100 . . . 13 48 90 90 100 . 89 73 . . Volleys Fired 69 | . 20 1 . 2 9 . . . . . . . 37 Largest 2 | . 2 2 . 1 1 . . . . . . . 2 Hottest 132 | . 90 90 . 30 45 . . . . . . . 132 Shots Fired 97 | . 40 2 . 1 9 . . . . . . . 45 Gun 96 | . 40 2 . . 9 . . . . . . . 45 Cannon . | . . . . . . . . . . . . . . Launcher 1 | . . . . 1 . . . . . . . . . Special . | . . . . . . . . . . . . . . Kinetic 16 | . . . . . . . . . . . . . 16 Thermal 71 | . 40 2 . . . . . . . . . . 29 Explosive 1 | . . . . 1 . . . . . . . . . Electromagnetic 9 | . . . . . 9 . . . . . . . . Robot Hit Streak 13 | . 8 4 . . 4 . . . . . . . 13 Robot Miss Streak 3 | . 3 . . 1 2 . . . . . . . 3 Penetration Max . | . . . . . . . . . . . . . . Secondary Targets 3 | . 1 . . . . . . . . . . . 2 Max Gunslinging Chain 1 | . 1 . . . . . . . . . . . 1 Shots Hit Robots 66 | . 26 2 . . 9 . . . . . . . 29 Core Hits 36 | . 12 1 . 1 6 . . . . . . . 16 Critical Kills . | . . . . . . . . . . . . . . Critical Parts Destroyed . | . . . . . . . . . . . . . . Critical Strikes 5 | . 1 . . . . . . . . . . . 4 Burn 5 | . 1 . . . . . . . . . . . 4 Melee Attacks . | . . . . . . . . . . . . . . Impact . | . . . . . . . . . . . . . . Slashing . | . . . . . . . . . . . . . . Piercing . | . . . . . . . . . . . . . . Sneak Attacks . | . . . . . . . . . . . . . . Combat Hostiles . | . . . . . . . . . . . . . . Follow-up Attacks . | . . . . . . . . . . . . . . Damage Inflicted 1734 | . 314 24 . 56 269 . . . . . . 6 1065 Guns 1542 | . 314 24 . . 139 . . . . . . . 1065 Cannons . | . . . . . . . . . . . . . . Explosions 186 | . . . . 56 130 . . . . . . . . Melee . | . . . . . . . . . . . . . . Ramming 6 | . . . . . . . . . . . . 6 . Kinetic 218 | . . . . . . . . . . . . . 218 Thermal 1315 | . 314 24 . . 130 . . . . . . . 847 Explosive 56 | . . . . 56 . . . . . . . . . Electromagnetic 139 | . . . . . 139 . . . . . . . . Impact . | . . . . . . . . . . . . . . Slashing . | . . . . . . . . . . . . . . Piercing . | . . . . . . . . . . . . . . Highest Corruption 44 | . . 2 2 2 . . 2 . . . . 5 44 Average Corruption 8 | . . 2 2 2 . . 1 . . . . 4 16 Corruption Purged 2 | . . . . . . . 2 . . . . . . Corruption Blocked 20 | . . . . . . . . . . . . . 20 Effects 25 | . . . 3 1 . . 1 . . . . 1 19 Message Errors 3 | . . . . . . . 1 . . . . . 2 Matter Fused 3 | . . . 1 . . . . . . . . . 2 Heat Flow Errors 5 | . . . . . . . . . . . . . 5 Energy Discharges 3 | . . . 1 . . . . . . . . . 2 Parts Rejected 1 | . . . . . . . . . . . . . 1 Data Loss (minor) 3 | . . . 1 . . . . . . . . 1 1 Data Loss (major) 2 | . . . . . . . . . . . . . 2 Alerts 1 | . . . . . . . . . . . . . 1 Misdirections 1 | . . . . . . . . . . . . . 1 Weapon Failures 3 | . . . . 1 . . . . . . . . 2 Overload Shots . | . . . . . . . . . . . . . . Overflow Damage 5 | . . . . . 5 . . . . . . . . Projectiles . | . . . . . . . . . . . . . . Explosions 5 | . . . . . 5 . . . . . . . . Melee . | . . . . . . . . . . . . . . Knockbacks . | . . . . . . . . . . . . . . Impact . | . . . . . . . . . . . . . . Kinetic . | . . . . . . . . . . . . . . Secondary . | . . . . . . . . . . . . . . Self-Inflicted Damage 54 | . . . . 36 15 . . . . . . 3 . Shots 2 | . . . . 1 1 . . . . . . . . Rammed 1 | . . . . . . . . . . . . 1 . Targets Rammed 1 | . . . . . . . . . . . . 1 . Kicked . | . . . . . . . . . . . . . . Crushed . | . . . . . . . . . . . . . . Highest Temperature 364 | . 258 40 . . 11 . . . . . 40 . 364 Average Temperature 93 | . 88 18 . . 6 . . . . . 18 . 113 Received Heat Transfer 840 | . 48 140 . . 63 15 6 . . 114 175 45 234 Effects 2 | . . . . . . . . . . . . . 2 Shutdowns 1 | . . . . . . . . . . . . . 1 Damage (minor) 1 | . . . . . . . . . . . . . 1 Siege Activations . | . . . . . . . . . . . . . . Robots Corrupted . | . . . . . . . . . . . . . . Combat Hostiles . | . . . . . . . . . . . . . . Parts Fried 2 | . . . . . 2 . . . . . . . . Impact Corruptions . | . . . . . . . . . . . . . . Robots Melted . | . . . . . . . . . . . . . . Combat Hostiles . | . . . . . . . . . . . . . . Parts Melted 7 | . 2 . . . 1 . . . . . . . 4 Heat Transferred 2462 | . 905 62 . . 200 . . . . . . . 1295 Parts Sabotaged . | . . . . . . . . . . . . . . Parts Stolen . | . . . . . . . . . . . . . . Parts Stripped . | . . . . . . . . . . . . . . Power Chain Reactions 2 | . . . . . 2 . . . . . . . . Missiles Intercepted . | . . . . . . . . . . . . . . Alert | -11 -10 -10 -10 -9 -8 -7 -6 -5 -4 -4 -3 -2 -2 ------- Run | Jun Mat Min Exi Min Mat Fac Fac Fac Fac DSF Res Res Tes Peak Influence 174 | . 157 61 . 137 155 148 89 78 37 25 136 50 174 Initial 70 | . . 61 . . 53 70 14 43 37 25 . 5 27 Average 65 | . 75 51 . 39 86 94 69 60 37 22 58 9 66 Maximum Alert Level . | . . . . . . . . . . . . . . Low Security (%) 100 | 100 100 100 . 100 100 100 100 100 100 100 100 100 100 Level 1 . | . . . . . . . . . . . . . . Level 2 . | . . . . . . . . . . . . . . Level 3 . | . . . . . . . . . . . . . . Level 4 . | . . . . . . . . . . . . . . Level 5 . | . . . . . . . . . . . . . . High Security . | . . . . . . . . . . . . . . Max Security . | . . . . . . . . . . . . . . Squads Dispatched 8 | . 1 . . . 1 2 . . . . 1 1 2 Investigation . | . . . . . . . . . . . . . . Extermination 1 | . . . . . . . . . . . . . 1 Reinforcement 7 | . 1 . . . 1 2 . . . . 1 1 1 Assault . | . . . . . . . . . . . . . . Garrison . | . . . . . . . . . . . . . . Intercept . | . . . . . . . . . . . . . . Searches Triggered . | . . . . . . . . . . . . . . Construction Impeded . | . . . . . . . . . . . . . . Haulers Reinforced . | . . . . . . . . . . . . . . Active Scanning Responses . | . . . . . . . . . . . . . . Cargo Convoy Interrupts . | . . . . . . . . . . . . . . Stealth | -11 -10 -10 -10 -9 -8 -7 -6 -5 -4 -4 -3 -2 -2 --------- Run | Jun Mat Min Exi Min Mat Fac Fac Fac Fac DSF Res Res Tes Distress Signals 6 | . 1 . . . 2 3 . . . . . . . Communications Jammed . | . . . . . . . . . . . . . . Distress Signals . | . . . . . . . . . . . . . . Times Spotted 143 | . 9 16 . 9 34 18 4 2 . 2 24 16 9 Peak Tracking Total 16 | . 3 16 . 6 11 6 3 1 . 2 10 9 4 Tactical Retreats 22 | . . 1 . 2 6 4 1 . . . 5 3 . Traps | -11 -10 -10 -10 -9 -8 -7 -6 -5 -4 -4 -3 -2 -2 ------- Run | Jun Mat Min Exi Min Mat Fac Fac Fac Fac DSF Res Res Tes Traps Triggered 5 | . . . . . . . 2 . . 1 1 . 1 Indirectly . | . . . . . . . . . . . . . . Trap Hack Attempts . | . . . . . . . . . . . . . . Triggered . | . . . . . . . . . . . . . . Disarmed . | . . . . . . . . . . . . . . Reprogrammed . | . . . . . . . . . . . . . . Reused . | . . . . . . . . . . . . . . Traps Extracted . | . . . . . . . . . . . . . . Installed . | . . . . . . . . . . . . . . Triggered . | . . . . . . . . . . . . . . Machines | -11 -10 -10 -10 -9 -8 -7 -6 -5 -4 -4 -3 -2 -2 ---------- Run | Jun Mat Min Exi Min Mat Fac Fac Fac Fac DSF Res Res Tes Machines Disabled 3 | . . . . . . . . . . . . . 3 Max in Single Turn 1 | . . . . . . . . . . . . . 1 Machines Repaired . | . . . . . . . . . . . . . . Machines Sabotaged . | . . . . . . . . . . . . . . Overloaded Fab Kills . | . . . . . . . . . . . . . . Hacking | -11 -10 -10 -10 -9 -8 -7 -6 -5 -4 -4 -3 -2 -2 --------- Run | Jun Mat Min Exi Min Mat Fac Fac Fac Fac DSF Res Res Tes Machines Accessed 24 | . 1 1 . . 5 7 2 4 1 . 3 . . Terminals 18 | . 1 . . . 3 4 2 4 1 . 3 . . Fabricators 2 | . . . . . . 2 . . . . . . . Repair Stations 1 | . . . . . . 1 . . . . . . . Recycling Units 2 | . . . . . 2 . . . . . . . . Scanalyzers . | . . . . . . . . . . . . . . Garrison Access . | . . . . . . . . . . . . . . Total Hacks 55 | . 1 1 . . 13 11 4 19 1 . 5 . . Successful 33 | . 1 1 . . 9 6 1 11 1 . 3 . . Failed 22 | . . . . . 4 5 3 8 . . 2 . . Catastrophic 2 | . . . . . . . 2 . . . . . . Database Lockouts . | . . . . . . . . . . . . . . Manual 38 | . 3 . . . 7 3 4 17 . . 4 . . Terminals 45 | . 1 . . . 8 7 4 19 1 . 5 . . Fabricators 2 | . . . . . . 2 . . . . . . . Repair Stations 2 | . . . . . . 2 . . . . . . . Recycling Units 5 | . . . . . 5 . . . . . . . . Scanalyzers . | . . . . . . . . . . . . . . Garrison Access . | . . . . . . . . . . . . . . Terminal Hacks 13 | . 1 1 . . 1 2 . 6 1 . 1 . . Record 2 | . . . . . . 1 . 1 . . . . . Robot Analysis 1 | . 1 . . . . . . . . . . . . Open Door 1 | . . 1 . . . . . . . . . . . Open DSF 2 | . . . . . . 1 . . 1 . . . . Level Access Points 1 | . . . . . . . . 1 . . . . . Branch Access Points 1 | . . . . . . . . 1 . . . . . Terminal Index 1 | . . . . . . . . 1 . . . . . Alert Level 2 | . . . . . 1 . . 1 . . . . . Locate Traps 1 | . . . . . . . . 1 . . . . . Registered Components 1 | . . . . . . . . . . . 1 . . Fabricator Hacks 1 | . . . . . . 1 . . . . . . . Network Status 1 | . . . . . . 1 . . . . . . . Repair Station Hacks 2 | . . . . . . 2 . . . . . . . Scan Component 1 | . . . . . . 1 . . . . . . . Repair 1 | . . . . . . 1 . . . . . . . Recycling Unit Hacks 5 | . . . . . 5 . . . . . . . . Report Inventory 2 | . . . . . 2 . . . . . . . . Retrieve Matter 1 | . . . . . 1 . . . . . . . . Retrieve Components 2 | . . . . . 2 . . . . . . . . Scanalyzer . | . . . . . . . . . . . . . . Garrison Access Hacks . | . . . . . . . . . . . . . . Unauthorized Hacks 12 | . . . . . 3 1 1 5 . . 2 . . Terminals 12 | . . . . . 3 1 1 5 . . 2 . . Assimilate 2 | . . . . . . . . 1 . . 1 . . Botnet 9 | . . . . . 3 1 1 3 . . 1 . . Operators 1 | . . . . . . . . 1 . . . . . Fabricators . | . . . . . . . . . . . . . . Repair Stations . | . . . . . . . . . . . . . . Recycling Units . | . . . . . . . . . . . . . . Scanalyzers . | . . . . . . . . . . . . . . Garrison Access . | . . . . . . . . . . . . . . Data Cores Recovered . | . . . . . . . . . . . . . . Used . | . . . . . . . . . . . . . . Hacking Detections 18 | . 1 . . . 3 6 2 4 . . 2 . . Full Trace Events . | . . . . . . . . . . . . . . Feedback Events . | . . . . . . . . . . . . . . Feedback Blocked . | . . . . . . . . . . . . . . Robot Schematics Acquired 1 | . . . . . . . . . . . . . 1 Robots Built . | . . . . . . . . . . . . . . Authchips . | . . . . . . . . . . . . . . Time . | . . . . . . . . . . . . . . Total Robot Build Rating . | . . . . . . . . . . . . . . Part Schematics Acquired 1 | . . . . . . . . . . . . . 1 Parts Built . | . . . . . . . . . . . . . . Authchips . | . . . . . . . . . . . . . . Time . | . . . . . . . . . . . . . . Total Part Build Rating . | . . . . . . . . . . . . . . Parts Repaired 1 | . . . . . . 1 . . . . . . . Time 20 | . . . . . . 20 . . . . . . . Parts Recycled . | . . . . . . . . . . . . . . Recycled Matter . | . . . . . . . . . . . . . . Retrieved Matter . | . . . . . . . . . . . . . . Retrieved Components 4 | . . . . . 4 . . . . . . . . Parts Scanalyzed . | . . . . . . . . . . . . . . Part Schematics Acquired . | . . . . . . . . . . . . . . Parts Damaged . | . . . . . . . . . . . . . . Bothacking | -11 -10 -10 -10 -9 -8 -7 -6 -5 -4 -4 -3 -2 -2 ------------ Run | Jun Mat Min Exi Min Mat Fac Fac Fac Fac DSF Res Res Tes Used RIF Installer . | . . . . . . . . . . . . . . Robots Hacked . | . . . . . . . . . . . . . . Non-combat . | . . . . . . . . . . . . . . Combat . | . . . . . . . . . . . . . . Robot Hacks Applied . | . . . . . . . . . . . . . . Relay Couplers Released . | . . . . . . . . . . . . . . Fabnet Peak Effective % . | . . . . . . . . . . . . . . Robots Rewired 1 | . . . . . . . . . . . . . 1 Allies Hacked . | . . . . . . . . . . . . . . Hacks Repelled . | . . . . . . . . . . . . . . Allies | -11 -10 -10 -10 -9 -8 -7 -6 -5 -4 -4 -3 -2 -2 -------- Run | Jun Mat Min Exi Min Mat Fac Fac Fac Fac DSF Res Res Tes Total Allies 3 | . . . . . . . . 1 . . 1 . 1 Largest Group 1 | . . . . . . . . 1 . . 1 . 1 Highest-Rated Group 163 | . . . . . . . . 10 . . 45 . 163 Highest-Rated Ally 163 | . . . . . . . . 10 . . 45 . 163 Total Orders 2 | . . 2 . . . . . . . . . . . EXPLORE 1 | . . 1 . . . . . . . . . . . RETURN 1 | . . 1 . . . . . . . . . . . Ally Attacks 5 | . . 3 . . . . . . . . . . 2 Total Damage 167 | . . 6 . . . . . . . . . . 161 Kills . | . . . . . . . . . . . . . . Allies Corrupted 2 | . . 1 . . . . . . . . . . 1 Allies Melted . | . . . . . . . . . . . . . . Intel | -11 -10 -10 -10 -9 -8 -7 -6 -5 -4 -4 -3 -2 -2 ------- Run | Jun Mat Min Exi Min Mat Fac Fac Fac Fac DSF Res Res Tes Robot Analysis Total 1 | . 1 . . . . . . . . . . . . Derelict Logs Recovered 2 | . . 2 . . . . . . . . . . . Drone Launches 1 | . . 1 . . . . . . . . . . . Drone Recoveries . | . . . . . . . . . . . . . . Exploration | -11 -10 -10 -10 -9 -8 -7 -6 -5 -4 -4 -3 -2 -2 ------------- Run | Jun Mat Min Exi Min Mat Fac Fac Fac Fac DSF Res Res Tes Turns Passed 2897 | 62 270 136 100 182 317 473 238 80 13 49 416 136 425 Spaces Moved 4023 | 45 159 106 200 318 619 886 430 216 38 78 406 284 238 Core 501 | 4 . 28 200 161 . . . . . . . 47 61 Treads 167 | . . . . . . . . . . . . . 167 Legs 288 | 41 159 78 . . . . . . . . . . 10 Wheels . | . . . . . . . . . . . . . . Hover . | . . . . . . . . . . . . . . Flight 3067 | . . . . 157 619 886 430 216 38 78 406 237 . Fastest Speed 30 | 50 120 50 50 40 30 35 35 34 34 34 34 39 50 Average Speed 49 | 113 121 115 50 45 37 35 35 34 34 34 38 41 125 Slowest Speed 400 | 120 190 190 50 50 50 35 35 35 34 34 39 150 400 Overloaded Moves . | . . . . . . . . . . . . . . Propulsion Burnouts . | . . . . . . . . . . . . . . Robots Hopped 40 | . . . . . 13 11 2 . . 1 8 5 . Cave-ins Triggered . | . . . . . . . . . . . . . . Exploration Rate (%) 30 | 4 28 49 62 56 54 32 15 8 1 65 16 12 22 Regions Visited 13 Branch Regions 4 Pre-discovered Areas 1 | . . 1 . . . . . . . . . . . Known Exits Taken 2 | . . . . . . . . 1 1 . . . . Unknown Exits Taken 10 | 1 1 1 1 1 1 1 1 . . . 1 1 . Scrap Searched . | . . . . . . . . . . . . . . Spaces Dug . | . . . . . . . . . . . . . . Terrain Destroyed 19 | . . . . 7 7 . . . . . . . 5 Melee . | . . . . . . . . . . . . . . Projectile 5 | . . . . . . . . . . . . . 5 AOE 14 | . . . . 7 7 . . . . . . . . Terrain Rammed . | . . . . . . . . . . . . . . Walls Destroyed . | . . . . . . . . . . . . . . Machines Disabled . | . . . . . . . . . . . . . . Actions | -11 -10 -10 -10 -9 -8 -7 -6 -5 -4 -4 -3 -2 -2 --------- Run | Jun Mat Min Exi Min Mat Fac Fac Fac Fac DSF Res Res Tes Total 4763 | 54 194 118 199 353 676 1035 515 221 37 98 653 298 312 Wait 600 | . 10 7 . 29 43 155 74 5 . 20 246 4 7 Move 3932 | 44 158 105 199 317 594 863 425 215 37 75 389 273 238 Hop 38 | . . . . . 11 11 2 . . 1 8 5 . Pick Up 19 | 5 1 1 . 1 5 2 2 . . . . 1 1 Fast Attach 46 | 3 3 . . 2 7 3 3 1 . 1 6 4 13 Attach 18 | 2 . . . 1 4 1 2 . . . . 4 4 Detach 7 | . . 1 . . 1 . 2 . . . . 1 2 Swap 3 | . 1 1 . . . . 1 . . . . . . Drop 19 | . 1 2 . 1 2 . 4 . . 1 1 5 2 Fire 69 | . 20 1 . 2 9 . . . . . . . 37 Melee . | . . . . . . . . . . . . . . Ram 1 | . . . . . . . . . . . . 1 . Kick . | . . . . . . . . . . . . . . Crush . | . . . . . . . . . . . . . . Escape Stasis 3 | . . . . . . . . . . . 3 . . Rewire 8 | . . . . . . . . . . . . . 8 Trap . | . . . . . . . . . . . . . . Miscellaneous . | . . . . . . . . . . . . . . Route ------- -11/Junkyard -10/Materials -10/Mines -10/Exiles -9/Mines -8/Materials -7/Factory (discovered 2 exits: *Fac / [*Low]) -6/Factory (discovered 2 exits: *Fac / [*Low]) -5/Factory (discovered 6 exits: *Fac x4 / *Upp x2) -4/Factory -4/DSF -3/Research -2/Research -2/Testing History --------- Turn | Location | Event 10 | -11/Junkyard | Discovered new exit (range 15) 63 | -11/Junkyard | Entered Materials 271 | -10/Materials | Discovered new exit (range 10) 302 | -10/Materials | Build established: Mutant 333 | -10/Materials | Entered Mines 379 | -10/Mines | Found the Drone Emporium 384 | -10/Mines | Found Prototype Device 393 | -10/Mines | Identified Thief Drone Bay 425 | -10/Mines | Assembled infested the area 457 | -10/Mines | Core integrity fell below 50% 462 | -10/Mines | Learned 4 Materials zone layouts 467 | -10/Mines | Deemed a non-threat by the Exiles lab entrance 467 | -10/Mines | Discovered new exit (range 5) 469 | -10/Mines | Entered Exiles 482 | -10/Exiles | Met 8R-AWN 486 | -10/Exiles | Lost 4 parts (1p2n1w) 490 | -10/Exiles | Met EX-HEX 504 | -10/Exiles | Met EX-BIN 541 | -10/Exiles | Met EX-DEC 563 | -10/Exiles | Discovered new exit (range 14) 569 | -10/Exiles | Entered Mines 620 | -9/Mines | Met a Derelict bent on vengeance 670 | -9/Mines | A weapon hastily lodged in a ceiling crevice suddenly fell to the ground 706 | -9/Mines | Core integrity fell below 20% 746 | -9/Mines | Discovered new exit (range 13) 751 | -9/Mines | Entered Materials 751 | -8/Materials | Evolved 4 slots: Propulsion x2, Utility x2 1061 | -8/Materials | Discovered new exit (range 20) 1067 | -8/Materials | Core integrity fell below 50% 1068 | -8/Materials | Entered Factory 1068 | -7/Factory | Evolved 2 slots: Utility x2 1070 | -7/Factory | Identified exit to DSF 1075 | -7/Factory | Lost 4 parts (2p2n) 1183 | -7/Factory | Repaired Imp. VTOL Module 1271 | -7/Factory | Discovered new exit (range 20) 1363 | -7/Factory | Build established: Hacker-Mutant 1538 | -7/Factory | Discovered new exit (range 9) 1541 | -7/Factory | Entered another Factory area 1541 | -6/Factory | Evolved 2 slots: Utility x2 1609 | -6/Factory | Discovered new exit (range 14) 1714 | -6/Factory | Discovered new exit (range 6) 1779 | -6/Factory | Entered another Factory area 1779 | -5/Factory | Evolved 2 slots: Utility x2 1786 | -5/Factory | Discovered new exit (range 19) 1829 | -5/Factory | Identified exit to Upper Caves 1848 | -5/Factory | Identified exit to Factory 1859 | -5/Factory | Entered another Factory area 1859 | -4/Factory | Evolved 2 slots: Utility x2 1872 | -4/Factory | Identified exit to DSF 1872 | -4/Factory | Entered DSF 1878 | -4/DSF | Discovered new exit (range 19) 1908 | -4/DSF | Additional patrols routed to DSF 1921 | -4/DSF | Entered Research 1921 | -3/Research | Evolved 2 slots: Utility x2 1932 | -3/Research | Spotted B-86 Titan 1934 | -3/Research | Found Prototype Processor 1934 | -3/Research | Identified Exp. Terrain Scan Processor 1949 | -3/Research | Lost 3 parts (3u) 2228 | -3/Research | Build established: Mutant 2263 | -3/Research | Spotted B-86 Titan 2330 | -3/Research | Discovered new exit (range 17) 2337 | -3/Research | Entered another Research area 2337 | -2/Research | Evolved 2 slots: Utility x2 2364 | -2/Research | Lost 4 parts (1p3u) 2422 | -2/Research | Spotted B-90 Cyclops 2435 | -2/Research | Spotted B-90 Cyclops 2467 | -2/Research | Discovered new exit (range 4) 2473 | -2/Research | Entered Testing 2476 | -2/Testing | Lost 5 parts (3n2u) 2571 | -2/Testing | Found Prototype Energy Gun 2571 | -2/Testing | Identified Tachyon Dispersion Ray 2737 | -2/Testing | Spotted PY-JNCSDYCQXI 2748 | -2/Testing | Rewired PY-JNCSDYCQXI 2761 | -2/Testing | System corruption reached 10% 2766 | -2/Testing | System corruption reached 30% 2792 | -2/Testing | Scanned by Researcher 2862 | -2/Testing | Lost 3 parts (1p1n1w) 2878 | -2/Testing | Core integrity fell below 50% 2898 | -2/Testing | Self-destructed Last Messages --------------- 02877_ U-05 Engineer lays Concrete. 02877_ Critical hit (Burn: +37). 02877_ K-01 Serf collects debris. 02879_ Acquired Phase Gun. 02880_ K-01 Serf destroyed. 02881_ K-01 Serf collects debris. 02882_ System corrupted: Component data lost. 02882_ Adv. Medium Treads destroyed. 02884_ U-05 Engineer lays Concrete. 02885_ K-01 Serf collects debris. 02886_ U-05 Engineer lays Concrete. 02886_ U-05 Engineer destroyed. 02889_ K-01 Serf collects debris. 02893_ Acquired 72 matter. 02893_ K-01 Serf collects debris. 02894_ Acquired 16 matter. 02895_ U-05 Engineer lays Concrete. 02896_ K-01 Serf collects debris. 02897_ Myomer Leg destroyed. 02897_ U-05 Engineer lays Concrete. Map ----- +----------------------------------------------------+ | ?????????????????????????????????????????????? | | ?????????????????????????????????????????????? | | ?????????????????????????????????????????????? | | ?????????????????????????????????????????????? | | ?????????????????????????????????????????????? | | ?????????????????????????????????????????????? | | ?????????????????????????????????????????????? | | ?????????????????????????????????????????????? | | ?????????????????????????????????????????????? | | ?????????????????????????????????????????????? | | ?????????????????????????????????????????????? | | ????????????#################????????????????? | | ????????????# #????????????????? | | ????????????# #????????????????? | | ????????????# """ #????????????????? | | ????????????# """"""""" #????????????????? | | ????????????# " " #????????????????? | | ????????????# " ! #????????????????? | | ????????????# "" [ #????????????????? | | ????????????# !"! ] = #????????????????? | | ?????????? # = #????????????????? | | ????????????# %% % ! #????????#???????? | | ????????????######+#;############## #???????? | | ????############## = !%* !%%^ ^ #???????? | | ????# #^ %![=|g!![ ! #???????? | | ????# # @| *g= ! R !#???????? | | ????# ; ^ !!*gk u""""" #???????? | | ????# # """""" #???????? | | ????# # """""" ??????? | | ????##+####+###### A ?????????? | | ?????# #### ?????????? | | ?????# ?????????? | | ?????# ##############?????????? | | ?????## ### # #?????????? | | ??????# ######+### # " " #?????????? | | ??????# # # # " " " #?????????? | | ??????# # # # " """ #?????????? | | ??????# # # # " #?????????? | | ??????# # # # """""" #?????????? | | ??????# # # + """""" #?????????? | | ??????# # + # " #?????????? | | ??????# # ! # # " """ #?????????? | | ??????# # # # " " #?????????? | | ??????# # # # " " #?????????? | | ??????# ########## ## #?????????? | | ??????# #????????# ###############?????????? | | ??????# #????????# #???????????????????????? | | ??????# #????????# #???????????????????????? | | ??????# #????????# #???????????????????????? | | ??????# #????????# #?#######???????????????? | +----------------------------------------------------+ Best States ------------- Heat Dissipation 49 Energy Generation 29 Energy Capacity 850 Matter Stores 300 Matter Capacity 300 Sight Range 20 Terrain Scan Density 1110 ECM Strength 2 Additional Mass Support 12 Propulsion Shielding 66 Evasion (%) 63 Targeting Accuracy 5 Target Analysis 8 Recoil Reduction 2 Offensive Hacking 22 Defensive Hacking 10 Item Schematics ----------------- Exp. Core Analyzer | -2/Testing | Archive Robot Schematics ------------------ B-74 Champion | -2/Testing | Archive Fabricated ------------ Nothing Alien Tech Used ----------------- None Achievements -------------- None Challenges ------------ None Game ------ Seed ForceCentriumWheel Manual? 0 Play Time 00:37:57 Cumulative 49.5 hours Start 2023.09.20 @ 12:20:34 End 2023.09.20 @ 12:54:54 Sessions 1 Manual Loads 0 Difficulty Rogue Special Mode None Game No. 79 Rogue 63 Adventurer 16 Explorer 0 Win Type - Total 1 Types 1/0/0/0/0/0/0/0/0 Lore% 31 Gallery% 51 Achievement% 45 Wizard Run 0 Options --------- ASCII 0 Keyboard 0 Movement Mouse Keybinds 0 Fullscreen 1 Font 18/SmallcapsGlow Map View 76x50 Tactical HUD 1 Map Filters NONE Filters NONE Steam 1 RUN: 9493f42a-d6dc-4b60-9ab7-aa3b0c200496